bitfinex/quotes_BTCUSD_20251205
["timestamp","ask_amount","ask_price","bid_price","bid_amount"]
[1764914503444,0.02728098,91988.0,91987.0,0.02150397]
[1764914503665,0.03128098,91988.0,91987.0,0.02150397]
[1764914504873,0.01487098,91988.0,91987.0,0.02150397]
[1764914505529,0.004,91988.0,91987.0,0.03164397]
[1764914505739,0.004,91988.0,91987.0,0.07111397]
[1764914506564,0.004,91988.0,91987.0,0.04818397]
[1764914507450,0.004,91988.0,91987.0,0.03164397]
[1764914508065,0.004,91988.0,91987.0,0.02150397]
[1764914512046,0.21742202,91987.0,91986.0,0.02150397]
[1764914513260,0.21842202,91987.0,91986.0,0.02150397]
[1764914513876,0.22142202,91987.0,91986.0,0.02150397]
[1764914518368,0.23736202,91987.0,91986.0,0.02150397]
[1764914518571,0.23736202,91987.0,91977.0,0.02173972]
[1764914518572,0.22829808,91985.0,91982.0,0.03866397]
[1764914518800,0.21743148,91983.0,91982.0,0.02150397]
[1764914519009,0.23959148,91983.0,91982.0,0.02150397]
[1764914519205,0.26210148,91983.0,91982.0,0.02150397]
[1764914521944,0.24159148,91983.0,91982.0,0.02150397]
[1764914522394,0.21743857,91980.0,91979.0,0.04324369]
[1764914523573,0.21843857,91980.0,91979.0,0.04324369]
[1764914523757,0.001,91980.0,91979.0,0.04324369]
[1764914528785,0.001,91980.0,91979.0,0.08444369]
[1764914529383,0.001,91980.0,91979.0,0.05983369]
[1764914529582,0.001,91980.0,91979.0,0.03832972]
[1764914529802,0.001,91980.0,91979.0,0.05983369]
[1764914531710,0.001,91980.0,91979.0,0.28038065]
[1764914531912,0.001,91980.0,91979.0,0.36440761]
[1764914532115,0.001,91980.0,91979.0,0.68740761]
[1764914532784,0.01086991,91997.0,91996.0,0.02150397]
[1764914534108,0.0108698,91998.0,91996.0,0.02150397]
[1764914534313,0.0108698,91998.0,91997.0,0.02150397]
[1764914535344,0.0118698,91998.0,91997.0,0.02150397]
[1764914535526,0.0148698,91998.0,91997.0,0.02150397]
[1764914536393,0.0138698,91998.0,91997.0,0.02150397]
[1764914536644,0.0148698,91998.0,91997.0,0.02150397]
[1764914538134,0.004,91998.0,91997.0,0.02150397]
[1764914540925,0.21739603,91998.0,91997.0,0.02150397]
[1764914541090,0.2174102,91992.0,91990.0,0.01716]
[1764914541306,0.2174102,91992.0,91991.0,0.02150397]
[1764914541826,0.21743128,91984.0,91983.0,0.02150397]
[1764914542188,0.25797128,91984.0,91983.0,0.02150397]
[1764914543036,0.25797128,91984.0,91983.0,0.02250397]
[1764914544201,0.25797128,91984.0,91983.0,0.02150397]
[1764914544590,0.25897128,91984.0,91983.0,0.02150397]
[1764914545852,0.21744566,91977.0,91976.0,0.03866397]
[1764914546076,0.24427566,91977.0,91976.0,0.03866397]
[1764914546294,0.26924566,91977.0,91976.0,0.03866397]
[1764914547235,0.26924566,91977.0,91968.0,0.02150397]
[1764914547236,0.01087322,91969.0,91968.0,0.02150397]
[1764914547458,0.01087322,91969.0,91968.0,0.03866397]
[1764914548475,0.01087322,91969.0,91968.0,0.04066397]
[1764914548694,0.00923,91970.0,91969.0,0.02150397]
[1764914548887,0.01087287,91972.0,91971.0,0.02150397]
[1764914549210,0.21744997,91976.0,91973.0,0.02150397]
[1764914549781,0.01087216,91978.0,91977.0,0.02150397]
[1764914549982,0.21743722,91981.0,91978.0,0.02150397]
[1764914550225,0.01087216,91978.0,91977.0,0.02150397]
[1764914551591,0.01087204,91979.0,91978.0,0.02150397]
[1764914551778,0.01087204,91979.0,91978.0,0.04324369]
[1764914555917,0.02213204,91979.0,91978.0,0.04324369]
[1764914556336,0.21745748,91972.0,91971.0,0.02150397]
[1764914556947,0.21745748,91972.0,91968.0,0.02803334]
[1764914556948,0.01087299,91971.0,91968.0,0.02803334]
[1764914557126,0.01087299,91971.0,91970.0,0.02150397]
[1764914558301,0.01087299,91971.0,91970.0,0.02350397]
[1764914564356,0.01087275,91973.0,91972.0,0.02150397]
[1764914565543,0.01087275,91973.0,91972.0,0.02350397]
[1764914566124,0.00972473,91973.0,91972.0,0.02350397]
[1764914567691,0.00972473,91973.0,91972.0,0.02353554]
[1764914572252,0.02592473,91973.0,91972.0,0.002]
[1764914572468,0.07405027,91973.0,91972.0,0.002]
[1764914573249,0.07405027,91973.0,91968.0,0.02153554]
[1764914573250,0.21746221,91970.0,91968.0,0.02153554]
[1764914573455,0.02494,91969.0,91968.0,0.02153554]
[1764914573657,0.04953,91969.0,91968.0,0.02153554]
[1764914573858,0.08140972,91969.0,91968.0,0.02153554]
[1764914574867,0.08240972,91969.0,91968.0,0.02153554]
[1764914580169,0.03287972,91969.0,91968.0,0.02153554]
[1764914581543,0.001,91969.0,91968.0,0.06064554]
[1764914582693,0.01087311,91970.0,91969.0,0.02153554]
[1764914582958,0.01087311,91970.0,91969.0,0.06064554]
[1764914583512,0.01087299,91971.0,91970.0,0.02153554]
[1764914583841,0.01087299,91971.0,91970.0,0.04327526]
[1764914584503,0.001,91971.0,91970.0,0.04327526]
[1764914584706,0.001,91971.0,91970.0,0.05835526]
[1764914584903,0.001,91971.0,91970.0,0.08238526]
[1764914586292,0.01087275,91973.0,91972.0,0.02153554]
[1764914586496,0.21743764,91981.0,91979.0,0.02153554]
[1764914586727,0.21743764,91981.0,91980.0,0.02153554]
[1764914586728,0.01087181,91981.0,91980.0,0.02153554]
[1764914588356,0.0435099,91983.0,91979.0,0.01014]
[1764914588569,0.001,91981.0,91980.0,0.02153554]
[1764914589420,0.004,91981.0,91980.0,0.02153554]
[1764914589633,0.003,91981.0,91980.0,0.02153554]
[1764914590658,0.001,91981.0,91980.0,0.02153554]
[1764914591482,0.002,91981.0,91979.0,0.01087204]
[1764914591709,0.002,91981.0,91980.0,0.02153554]
[1764914592781,0.01087169,91982.0,91981.0,0.02153554]
[1764914593425,0.01087169,91982.0,91979.0,0.02153554]
[1764914593426,0.01087192,91980.0,91979.0,0.02153554]
[1764914594515,0.22831297,91979.0,91978.0,0.02153554]
[1764914594657,0.22831297,91979.0,91976.0,0.01716]
[1764914594865,0.22831297,91979.0,91978.0,0.02153554]
[1764914595284,0.01087204,91979.0,91978.0,0.02153554]
[1764914595621,0.01087204,91979.0,91976.0,0.0280324]
[1764914595622,0.01087181,91981.0,91980.0,0.02153554]
[1764914597406,0.01287181,91981.0,91980.0,0.02153554]
[1764914597806,0.01387181,91981.0,91980.0,0.02153554]
[1764914601343,0.003,91981.0,91980.0,0.06207554]
[1764914601554,0.003,91981.0,91980.0,0.60251411]
[1764914602208,0.002,91981.0,91980.0,0.60251411]
[1764914602610,0.01087003,91996.0,91995.0,0.02153554]
[1764914602832,0.01086991,91997.0,91996.0,0.02153554]
[1764914603740,0.0108698,91998.0,91997.0,0.02153554]
[1764914604573,0.01086956,92000.0,91996.0,0.01087003]
[1764914604768,0.01086956,92000.0,91999.0,0.02153554]
[1764914606537,0.01186956,92000.0,91999.0,0.02153554]
[1764914606740,0.01486956,92000.0,91999.0,0.02153554]
[1764914607558,0.004,92000.0,91999.0,0.02153554]
[1764914613581,0.21740075,91996.0,91995.0,0.02153554]
[1764914613800,0.21740075,91996.0,91995.0,0.03869554]
[1764914614644,0.21840075,91996.0,91995.0,0.03869554]
[1764914614829,0.22040075,91996.0,91995.0,0.03869554]
[1764914616773,0.26162075,91996.0,91995.0,0.03869554]
[1764914616944,0.23662075,91996.0,91995.0,0.03869554]
[1764914617153,0.22040075,91996.0,91995.0,0.03869554]
[1764914618595,0.25959075,91996.0,91995.0,0.03869554]
[1764914618993,0.25959075,91996.0,91994.0,0.02173972]
[1764914619213,0.03919,91995.0,91994.0,0.03889972]
[1764914619413,0.03919,91995.0,91994.0,0.04327526]
[1764914620040,0.01636,91995.0,91994.0,0.04327526]
[1764914620756,0.21940075,91996.0,91995.0,0.02153554]
[1764914621513,0.23376075,91996.0,91995.0,0.02153554]
[1764914622399,0.23676075,91996.0,91995.0,0.02153554]
[1764914622590,0.21740784,91993.0,91992.0,0.03869554]
[1764914622814,0.24567784,91993.0,91992.0,0.02153554]
[1764914623048,0.26850784,91993.0,91992.0,0.02153554]
[1764914624163,0.22931784,91993.0,91992.0,0.02153554]
[1764914624393,0.22828327,91991.0,91990.0,0.02153554]
[1764914625131,0.01087027,91994.0,91990.0,0.0403]
[1764914625294,0.01087027,91994.0,91993.0,0.04717554]
[1764914625502,0.22827561,91995.0,91994.0,0.02153554]
[1764914625829,0.01087015,91995.0,91994.0,0.02153554]
[1764914625983,0.22827326,91995.0,91994.0,0.02153554]
[1764914628015,0.22927326,91995.0,91994.0,0.02153554]
[1764914632450,0.22828449,91991.0,91990.0,0.02153554]
[1764914632852,0.2282956,91986.0,91985.0,0.02153554]
[1764914633061,0.2733656,91986.0,91985.0,0.02153554]
[1764914633277,0.2733656,91986.0,91985.0,0.03782554]
[1764914633278,0.2282956,91986.0,91985.0,0.03782554]
[1764914633455,0.01087121,91986.0,91985.0,0.05956526]
[1764914634064,0.01087121,91986.0,91985.0,0.08284526]
[1764914634870,0.01087121,91986.0,91985.0,0.10100526]
[1764914635700,0.01087086,91989.0,91988.0,0.02153554]
[1764914635900,0.01087086,91989.0,91988.0,0.03782554]
[1764914636464,0.01087086,91989.0,91988.0,0.06110554]
[1764914636666,0.01087086,91989.0,91988.0,0.03782554]
[1764914637701,0.01087051,91992.0,91988.0,0.03782554]
[1764914637901,0.01087051,91992.0,91991.0,0.02153554]
[1764914638306,0.01087051,91992.0,91991.0,0.03167554]
[1764914639086,0.01187051,91992.0,91991.0,0.03167554]
[1764914639505,0.001,91992.0,91991.0,0.03167554]
[1764914639953,0.001,91992.0,91991.0,0.07124554]
[1764914640707,0.001,91992.0,91991.0,0.28865811]
[1764914648523,0.01086932,92002.0,92001.0,0.02153554]
[1764914650286,0.01186932,92002.0,92001.0,0.02153554]
[1764914650915,0.01186932,92002.0,92001.0,0.03167554]
[1764914655215,0.001,92002.0,92001.0,0.03167554]
[1764914656024,0.001,92002.0,92001.0,0.28801448]
[1764914658690,0.001,92002.0,92001.0,0.28901448]
[1764914658921,0.01086779,92015.0,92014.0,0.02153554]
[1764914659125,0.01086779,92015.0,92014.0,0.03672554]
[1764914659263,0.01086779,92015.0,92014.0,0.08222526]
[1764914659448,0.01086779,92015.0,92014.0,0.04327526]
[1764914663607,0.21735114,92017.0,92016.0,0.02153554]
[1764914663807,0.01086732,92019.0,92016.0,0.01014]
[1764914664011,0.21735586,92015.0,92014.0,0.04327526]
[1764914666931,0.02279755,92017.0,92016.0,0.02153554]
[1764914667143,0.01086743,92018.0,92014.0,0.03260763]
[1764914667353,0.01086743,92018.0,92017.0,0.02153554]
[1764914669190,0.01086743,92018.0,92017.0,0.03672554]
[1764914669401,0.01086743,92018.0,92017.0,0.02153554]
[1764914672852,0.01086743,92018.0,92017.0,0.03672554]
[1764914673196,0.01086743,92018.0,92017.0,0.06048554]
[1764914673479,0.01086743,92018.0,92017.0,0.03672554]
[1764914673885,0.01086743,92018.0,92017.0,0.02153554]
[1764914683393,0.01086732,92019.0,92018.0,0.02153554]
[1764914683639,0.0108672,92020.0,92019.0,0.02153554]
[1764914683848,0.01086684,92023.0,92022.0,0.02153554]
[1764914684057,0.01086684,92023.0,92022.0,0.06112554]
[1764914684414,0.01086684,92023.0,92022.0,0.03772554]
[1764914685222,0.01286684,92023.0,92022.0,0.02153554]
[1764914685422,0.21733933,92022.0,92021.0,0.02153554]
[1764914685643,0.0108672,92020.0,92019.0,0.02153554]
[1764914686046,0.0108672,92020.0,92017.0,0.01014]
[1764914686047,0.21734641,92019.0,92017.0,0.01014]
[1764914686247,0.21734641,92019.0,92018.0,0.02153554]
[1764914686500,0.21734641,92019.0,92009.0,0.2173695]
[1764914686501,0.22822877,92013.0,92000.0,0.02173972]
[1764914686675,0.22822861,92013.0,92012.0,0.02153554]
[1764914687691,0.01086838,92010.0,92009.0,0.02153554]
[1764914688855,0.01086838,92010.0,92009.0,0.02353554]
[1764914691162,0.01086838,92010.0,92009.0,0.002]
[1764914691334,0.01086838,92010.0,92009.0,0.02353554]
[1764914692318,0.05159838,92010.0,92009.0,0.002]
[1764914692525,0.05159838,92010.0,92009.0,0.02353554]
[1764914693538,0.05159838,92010.0,92009.0,0.02153554]
[1764914693809,0.02682838,92010.0,92009.0,0.02153554]
[1764914694024,0.01086838,92010.0,92009.0,0.02153554]
[1764914694242,0.01086838,92010.0,92009.0,0.06264554]
[1764914694875,0.22822861,92013.0,92009.0,0.06264554]
[1764914695096,0.01086802,92013.0,92012.0,0.04821554]
[1764914695959,0.01086802,92013.0,92012.0,0.03167554]
[1764914698035,0.01086802,92013.0,92012.0,0.02153554]
[1764914698240,0.01186802,92013.0,92012.0,0.02153554]
[1764914700139,0.02782802,92013.0,92012.0,0.02153554]
[1764914700345,0.05259802,92013.0,92012.0,0.02153554]
[1764914700548,0.01086897,92005.0,92004.0,0.02153554]
[1764914701168,0.03563897,92005.0,92004.0,0.02153554]
[1764914701308,0.01086897,92005.0,92004.0,0.02153554]
[1764914701730,0.01086897,92005.0,92004.0,0.02253554]
[1764914702236,0.01086897,92005.0,92004.0,0.06364554]
[1764914704003,0.01086897,92005.0,92004.0,0.03907554]
[1764914705471,0.01086897,92005.0,92004.0,0.06364554]
[1764914706857,0.01086873,92007.0,92006.0,0.02153554]
[1764914707262,0.01086873,92007.0,92006.0,0.03167554]
[1764914707462,0.01086873,92007.0,92006.0,0.07059554]
[1764914711442,0.22824419,92008.0,92007.0,0.02153554]
[1764914711646,0.01086802,92013.0,92007.0,0.02153554]
[1764914711647,0.01086838,92010.0,92009.0,0.02153554]
[1764914712041,0.22823605,92010.0,92009.0,0.03699554]
[1764914712243,0.22823605,92010.0,92009.0,0.06045554]
[1764914713161,0.01086838,92010.0,92009.0,0.06045554]
[1764914715537,0.01086838,92010.0,92009.0,0.03699554]
[1764914717024,0.01086838,92010.0,92009.0,0.06045554]
[1764914717737,0.01086838,92010.0,92009.0,0.03699554]
[1764914718699,0.01086838,92010.0,92009.0,0.06045554]
[1764914719424,0.01086802,92013.0,92012.0,0.02153554]
[1764914719637,0.01086802,92013.0,92012.0,0.03869554]
[1764914719986,0.01086802,92013.0,92012.0,0.05415554]
[1764914720422,0.01086802,92013.0,92012.0,0.07761554]
[1764914720721,0.01186802,92013.0,92012.0,0.07761554]
[1764914723153,0.001,92013.0,92012.0,0.07761554]
[1764914723779,0.21836059,92013.0,92012.0,0.07761554]
[1764914724388,0.001,92013.0,92012.0,0.07761554]
[1764914730411,0.21836059,92013.0,92012.0,0.01716]
[1764914730613,0.21836059,92013.0,92012.0,0.03869554]
[1764914730770,0.25743059,92013.0,92012.0,0.03869554]
[1764914731548,0.21836059,92013.0,92012.0,0.03869554]
[1764914734149,0.001,92013.0,92012.0,0.07761554]
[1764914734838,0.21836059,92013.0,92012.0,0.07761554]
[1764914735813,0.001,92013.0,92012.0,0.07761554]
[1764914737647,0.001,92013.0,92012.0,0.05608]
[1764914737886,0.001,92013.0,92012.0,0.07761554]
[1764914742479,0.001,92013.0,92012.0,0.05415554]
[1764914743081,0.001,92013.0,92012.0,0.07865554]
[1764914745900,0.001,92013.0,92012.0,0.06149554]
[1764914746200,0.001,92013.0,92012.0,0.10039183]
[1764914746758,0.001,92013.0,92012.0,0.07865554]
[1764914747316,0.001,92013.0,92012.0,0.10039183]
[1764914747822,0.01086767,92022.0,92019.0,0.01086732]
[1764914748029,0.01086767,92022.0,92021.0,0.04327526]
[1764914748233,0.01086767,92022.0,92021.0,0.05341526]
[1764914748870,0.01286767,92022.0,92021.0,0.05341526]
[1764914749686,0.01386767,92022.0,92021.0,0.05341526]
[1764914750305,0.01186767,92022.0,92021.0,0.05341526]
[1764914750535,0.01386767,92022.0,92021.0,0.09172526]
[1764914752091,0.01386767,92022.0,92021.0,0.30906695]
[1764914755250,0.01086767,92022.0,92021.0,0.30906695]
[1764914759094,0.21732523,92028.0,92021.0,0.30906695]
[1764914759095,0.21732523,92028.0,92026.0,0.02153554]
[1764914759479,0.04348845,92027.0,92026.0,0.02153554]
[1764914760004,0.03262208,92027.0,92026.0,0.02153554]
[1764914760203,0.03362208,92027.0,92026.0,0.23886542]
[1764914760381,0.03362208,92027.0,92026.0,0.02153554]
[1764914760586,0.001,92027.0,92026.0,0.02153554]
[1764914761801,0.001,92027.0,92026.0,0.03677554]
[1764914762017,0.001,92027.0,92026.0,0.05984554]
[1764914762595,0.01349,92027.0,92026.0,0.02153554]
[1764914762802,0.21733933,92022.0,92021.0,0.02153554]
[1764914763042,0.21733933,92022.0,92021.0,0.03869554]
[1764914763846,0.21733933,92022.0,92021.0,0.02153554]
[1764914764049,0.21733933,92022.0,92021.0,0.03869554]
[1764914765951,0.21733933,92022.0,92021.0,0.04883554]
[1764914767884,0.21733933,92022.0,92021.0,0.03869554]
[1764914768702,0.21733933,92022.0,92021.0,0.01716]
[1764914768900,0.21733933,92022.0,92021.0,0.03869554]
[1764914770955,0.21733933,92022.0,92021.0,0.02153554]
[1764914771166,0.25693933,92022.0,92021.0,0.03869554]
[1764914771578,0.23303933,92022.0,92021.0,0.03869554]
[1764914771758,0.21733933,92022.0,92021.0,0.03869554]
[1764914772397,0.21734641,92019.0,92018.0,0.02173972]
[1764914772600,0.21734641,92019.0,92018.0,0.03889972]
[1764914772799,0.21734641,92019.0,92018.0,0.06043526]
[1764914774100,0.21734405,92020.0,92018.0,0.06043526]
[1764914774874,0.21734405,92020.0,92018.0,0.04327526]
[1764914775099,0.21734405,92020.0,92019.0,0.01716]
[1764914776499,0.01086708,92021.0,92018.0,0.04327526]
[1764914776699,0.01086684,92023.0,92019.0,0.01716]
[1764914777801,0.01086684,92023.0,92019.0,0.02802732]
[1764914778006,0.01086649,92026.0,92025.0,0.02153554]
[1764914780239,0.01186649,92026.0,92025.0,0.02153554]
[1764914784583,0.01186649,92026.0,92025.0,0.07729554]
[1764914786083,0.01186649,92026.0,92025.0,0.05413554]
[1764914789653,0.001,92026.0,92025.0,0.05413554]
[1764914791580,0.001,92026.0,92025.0,0.27146778]
[1764914792008,0.001,92026.0,92025.0,0.29462778]
[1764914792218,0.001,92026.0,92025.0,0.30476778]
[1764914792421,0.001,92026.0,92025.0,0.28760778]
[1764914792624,0.001,92026.0,92025.0,0.30476778]
[1764914792840,0.001,92026.0,92025.0,0.28160778]
[1764914794938,0.001,92026.0,92025.0,0.30476778]
[1764914795498,0.001,92026.0,92025.0,0.33738358]
[1764914796069,0.0002,92030.0,92029.0,0.23885834]
[1764914796287,0.0002,92030.0,92029.0,0.25429834]
[1764914796456,0.0002,92030.0,92029.0,0.27745834]
[1764914796661,0.0002,92030.0,92029.0,0.28180711]
[1764914798932,0.0002,92030.0,92029.0,0.28480711]
[1764914799287,0.0002,92030.0,92029.0,0.38560057]
[1764914799489,0.0002,92030.0,92029.0,0.70860057]
[1764914800078,0.0002,92030.0,92029.0,0.6703301]
[1764914801517,0.0002,92030.0,92029.0,0.72576057]
[1764914801698,0.0002,92030.0,92029.0,0.6874901]
[1764914805137,0.0002,92030.0,92029.0,0.72576057]
[1764914806340,0.0002,92030.0,92029.0,1.97235148]
[1764914806541,0.0002,92030.0,92029.0,1.97335148]
[1764914806742,0.0002,92030.0,92029.0,1.50858701]
[1764914806966,0.0002,92030.0,92029.0,1.51258701]
[1764914807527,0.0002,92030.0,92029.0,1.50958701]
[1764914807651,0.0002,92030.0,92029.0,1.51758701]
[1764914807852,0.0002,92030.0,92029.0,1.4252351]
[1764914808096,0.0002,92030.0,92029.0,1.4262351]
[1764914808270,0.0002,92030.0,92029.0,1.4332351]
[1764914809269,0.0002,92030.0,92029.0,1.51372853]
[1764914809471,0.0002,92030.0,92029.0,1.551999]
[1764914810812,0.0002,92030.0,92029.0,1.700199]
[1764914812603,0.0002,92050.0,92039.0,0.21729918]
[1764914812806,0.0002,92050.0,92039.0,0.64070771]
[1764914813072,0.0002,92050.0,92039.0,0.70215486]
[1764914813641,0.0002,92050.0,92039.0,0.70650218]
[1764914813961,0.0002,92050.0,92039.0,0.71050218]
[1764914814166,0.0002,92050.0,92049.0,0.62433411]
[1764914814317,0.0002,92050.0,92049.0,0.65780411]
[1764914814522,0.0002,92050.0,92049.0,0.68102411]
[1764914814782,0.0002,92050.0,92049.0,0.68537116]
[1764914816399,0.0002,92050.0,92049.0,0.68837116]
[1764914817864,0.0002,92050.0,92049.0,0.67125116]
[1764914818266,0.0002,92050.0,92049.0,0.68837116]
[1764914820394,0.0002,92050.0,92049.0,0.67125116]
[1764914820595,0.03901,92050.0,92049.0,0.02453554]
[1764914820832,0.02733,92050.0,92049.0,0.02453554]
[1764914821463,0.02733,92050.0,92049.0,0.02353554]
[1764914822176,0.02733,92050.0,92049.0,0.02153554]
[1764914822177,0.05032,92050.0,92049.0,0.02153554]
[1764914822524,0.05432,92050.0,92049.0,0.02153554]
[1764914822752,0.01086401,92047.0,92044.0,0.03869554]
[1764914822907,0.01086401,92047.0,92046.0,0.02153554]
[1764914823113,0.04967401,92047.0,92046.0,0.02153554]
[1764914823676,0.22814679,92046.0,92045.0,0.02153554]
[1764914823819,0.25113679,92046.0,92045.0,0.02153554]
[1764914824020,0.26695679,92046.0,92045.0,0.02153554]
[1764914825469,0.26995679,92046.0,92045.0,0.02153554]
[1764914828765,0.21728974,92043.0,92042.0,0.01716]
[1764914829032,0.21730391,92037.0,92036.0,0.02153554]
[1764914829315,0.24420391,92037.0,92036.0,0.02153554]
[1764914829476,0.26684391,92037.0,92036.0,0.02153554]
[1764914829683,0.21731099,92034.0,92033.0,0.01716]
[1764914829925,0.21731099,92034.0,92033.0,0.03869554]
[1764914830219,0.23995099,92034.0,92033.0,0.03869554]
[1764914830782,0.24095099,92034.0,92033.0,0.03869554]
[1764914831121,0.25624099,92034.0,92033.0,0.03869554]
[1764914831872,0.25524099,92034.0,92033.0,0.03869554]
[1764914832284,0.25824099,92034.0,92033.0,0.03869554]
[1764914832487,0.25824099,92034.0,92026.0,0.02153554]
[1764914832488,0.01086637,92027.0,92026.0,0.02153554]
[1764914832694,0.03701637,92027.0,92026.0,0.02153554]
[1764914833334,0.05875609,92027.0,92026.0,0.02153554]
[1764914833555,0.08139609,92027.0,92026.0,0.02153554]
[1764914833817,0.05875609,92027.0,92026.0,0.02153554]
[1764914834788,0.03701637,92027.0,92026.0,0.02153554]
[1764914836688,0.02172637,92027.0,92026.0,0.02153554]
[1764914838040,0.01086637,92027.0,92026.0,0.02153554]
[1764914840240,0.04879637,92027.0,92026.0,0.02153554]
[1764914844452,0.21733933,92022.0,92021.0,0.02153554]
[1764914844679,0.23262933,92022.0,92021.0,0.02153554]
[1764914844867,0.25526933,92022.0,92021.0,0.02153554]
[1764914845922,0.26026933,92022.0,92021.0,0.02153554]
[1764914847582,0.26126933,92022.0,92021.0,0.02153554]
[1764914855952,0.23862933,92022.0,92021.0,0.02153554]
[1764914856165,0.23862933,92022.0,92013.0,0.02173972]
[1764914856166,0.01086755,92017.0,92016.0,0.02153554]
[1764914856505,0.01086755,92017.0,92015.0,0.02153554]
[1764914856506,0.22822117,92016.0,92015.0,0.02153554]
[1764914856707,0.24425822,92014.0,92013.0,0.04327526]
[1764914858169,0.22896822,92014.0,92013.0,0.04327526]
[1764914858378,0.22822117,92016.0,92015.0,0.02153554]
[1764914858583,0.23022117,92016.0,92015.0,0.02153554]
[1764914858795,0.22822117,92016.0,92015.0,0.02153554]
[1764914859734,0.23022117,92016.0,92015.0,0.02153554]
[1764914861650,0.002,92016.0,92015.0,0.02153554]
[1764914862054,0.002,92016.0,92013.0,0.03260774]
[1764914862260,0.002,92016.0,92015.0,0.06152554]
[1764914868503,0.002,92016.0,92015.0,0.08326112]
[1764914869528,0.002,92016.0,92015.0,0.06152554]
[1764914870321,0.002,92016.0,92015.0,0.07868554]
[1764914877475,0.002,92016.0,92015.0,0.10042112]
[1764914880418,0.002,92016.0,92015.0,0.07868554]
[1764914881518,0.002,92016.0,92015.0,0.06152554]
[1764914881724,0.002,92016.0,92015.0,0.07868554]
[1764914882343,0.002,92016.0,92015.0,0.11056112]
[1764914882792,0.002,92016.0,92015.0,0.08882554]
[1764914884654,0.002,92016.0,92015.0,0.01716]
[1764914884889,0.0354201,92016.0,92015.0,0.03869554]
[1764914885627,0.0354201,92016.0,92015.0,0.02153554]
[1764914886050,0.21735586,92015.0,92014.0,0.02153554]
[1764914886255,0.24153586,92015.0,92014.0,0.02153554]
[1764914886456,0.25729586,92015.0,92014.0,0.02153554]
[1764914887445,0.25829586,92015.0,92014.0,0.02153554]
[1764914887855,0.25829586,92015.0,92013.0,0.01716]
[1764914888062,0.03972,92014.0,92013.0,0.01716]
[1764914888262,0.03972,92014.0,92013.0,0.03869554]
[1764914889889,0.04072,92014.0,92013.0,0.03869554]
[1764914892074,0.0164,92014.0,92013.0,0.03869554]
[1764914892271,0.001,92014.0,92013.0,0.03869554]
[1764914892638,0.001,92014.0,92013.0,0.07686554]
[1764914892840,0.001,92014.0,92013.0,0.05533]
[1764914893169,0.001,92014.0,92013.0,0.07686554]
[1764914893898,0.001,92014.0,92013.0,0.12034131]
[1764914894113,0.001,92014.0,92013.0,0.09860526]
[1764914895636,0.01086767,92016.0,92015.0,0.02153554]
[1764914896921,0.01186767,92016.0,92015.0,0.02153554]
[1764914897125,0.001,92016.0,92015.0,0.02153554]
[1764914898530,0.001,92016.0,92015.0,0.03663554]
[1764914898729,0.001,92016.0,92015.0,0.05970554]
[1764914909456,0.001,92016.0,92015.0,0.07057274]
[1764914911178,0.01086661,92025.0,92022.0,0.01086696]
[1764914911386,0.01086661,92025.0,92024.0,0.02153554]
[1764914911785,0.22819575,92027.0,92026.0,0.02153554]
[1764914912150,0.01086637,92027.0,92026.0,0.03380554]
[1764914914111,0.01086614,92029.0,92028.0,0.02153554]
[1764914915178,0.01186614,92029.0,92028.0,0.02153554]
[1764914915577,0.01586614,92029.0,92028.0,0.02153554]
[1764914917222,0.04301614,92029.0,92028.0,0.02153554]
[1764914917423,0.06680614,92029.0,92028.0,0.02153554]
[1764914923526,0.02760614,92029.0,92028.0,0.02153554]
[1764914928514,0.06814614,92029.0,92028.0,0.02153554]
[1764914930592,0.04425614,92029.0,92028.0,0.02153554]
[1764914930795,0.02760614,92029.0,92028.0,0.02153554]
[1764914932757,0.01586614,92029.0,92028.0,0.02153554]
[1764914936340,0.01586614,92029.0,92027.0,0.02173972]
[1764914936341,0.005,92029.0,92027.0,0.02173972]
[1764914936551,0.005,92029.0,92028.0,0.06220554]
[1764914936768,0.005,92029.0,92028.0,0.08394526]
[1764914936975,0.005,92029.0,92028.0,0.40694526]
[1764914937380,0.01214,92044.0,92043.0,0.02153554]
[1764914937584,0.01214,92044.0,92043.0,0.03869554]
[1764914937954,0.22814795,92046.0,92045.0,0.02153554]
[1764914938841,0.01086413,92046.0,92045.0,0.02153554]
[1764914940168,0.01286413,92046.0,92045.0,0.02153554]
[1764914940581,0.03675413,92046.0,92045.0,0.02153554]
[1764914941691,0.05340413,92046.0,92045.0,0.02153554]
[1764914942107,0.002,92046.0,92045.0,0.06220554]
[1764914942364,0.21725666,92058.0,92045.0,0.06220554]
[1764914942365,0.00119999,92090.0,92069.0,0.21722838]
[1764914942564,0.02173972,92084.0,92069.0,0.68211691]
[1764914942733,0.0002,92090.0,92069.0,0.68211691]
[1764914943536,0.0002,92090.0,92069.0,0.70385663]
[1764914945650,0.0002,92090.0,92069.0,0.70485663]
[1764914945820,0.0002,92090.0,92069.0,0.70985663]
[1764914946031,0.0002,92090.0,92069.0,0.70885663]
[1764914946405,0.0002,92090.0,92069.0,0.70985663]
[1764914947709,0.00474196,92070.0,92069.0,0.70985663]
[1764914950219,0.00474196,92070.0,92069.0,0.70485663]
[1764914950437,0.00474196,92070.0,92069.0,0.70385663]
[1764914950596,0.00474196,92070.0,92069.0,0.70485663]
[1764914951534,0.00474196,92070.0,92069.0,0.70885663]
[1764914953449,0.00474196,92070.0,92069.0,0.69169663]
[1764914953672,0.00474196,92070.0,92069.0,0.70885663]
[1764914954636,0.00474196,92070.0,92069.0,0.70485663]
[1764914954840,0.00474196,92070.0,92069.0,0.70785663]
[1764914955319,0.00474196,92070.0,92069.0,0.70885663]
[1764914957661,0.00474196,92070.0,92069.0,0.69169663]
[1764914958015,0.00474196,92070.0,92069.0,0.70885663]
[1764914958459,0.00474196,92070.0,92069.0,0.60471364]
[1764914958661,0.00474196,92070.0,92069.0,0.61787364]
[1764914959103,0.00474196,92070.0,92069.0,0.61887364]
[1764914959310,0.00474196,92070.0,92069.0,0.61987364]
[1764914959504,0.00474196,92070.0,92069.0,0.06343526]
[1764914959706,0.22196798,92070.0,92069.0,0.04169554]
[1764914959882,0.22196798,92070.0,92069.0,0.04069554]
[1764914959883,0.25777798,92070.0,92069.0,0.04069554]
[1764914960099,0.01607196,92070.0,92069.0,0.04069554]
[1764914960506,0.27420798,92070.0,92069.0,0.02353554]
[1764914960739,0.27676572,92070.0,92069.0,0.02153554]
[1764914961140,0.27676572,92070.0,92069.0,0.02253554]
[1764914961515,0.0373484,92070.0,92069.0,0.02253554]
[1764914962869,0.03529013,92070.0,92069.0,0.02253554]
[1764914963410,0.03529013,92070.0,92069.0,0.001]
[1764914963411,0.07620013,92070.0,92069.0,0.001]
[1764914963611,0.07620013,92070.0,92069.0,0.02253554]